{"text_format":"1","workbook":"xlsx","n_sheets":2,"sheets":["Base","données"],"not_rendered":{"charts":0,"images":8,"macros":1,"external_links":0,"defined_names":4,"comments":0,"pivot_tables":0},"unopened":[],"bounds":{"document_bytes":16777216,"sheet_cells":100000,"rows_first":2000,"rows_last":500,"rows_between":2000,"halvings":0,"cell_chars":16384,"cell_head_chars":4096},"cells_cut":0,"cells_raw":0,"read":"whole","date_system":"1900"}

{"sheet":"Base","index":0,"n_rows":82,"n_cols":37,"rows_kept":82,"cut":false,"hidden":false,"merged":[]}
[]
[]
[]
[]
[null,null,null,null,"LEGENDE"]
[]
[null,null,null,"Sect A"]
[null,null,null,"Sect B"]
[null,null,null,"Sect C"]
[]
[]
[]
[null,null,null,null,null,"2016-01-01","2016-01-02","2016-01-03","2016-01-04","2016-01-05","2016-01-06","2016-01-07","2016-01-08","2016-01-09","2016-01-10","2016-01-11","2016-01-12","2016-01-13","2016-01-14","2016-01-15","2016-01-16","2016-01-17","2016-01-18","2016-01-19","2016-01-20","2016-01-21","2016-01-22"]
[null,null,null,null,null,"VE","SA","DI","LU","MA","ME","JE","VE","SA","DI","LU","MA","ME","JE","VE","SA","DI","LU","MA","ME","JE","VE",null,null,null,null,"AFFECTATION","FONCTION","CONTRAT","Rouge","Vert","Jaune"]
[null,null,null,null,"AGENT 1",null,null,null,null,null,null,null,null,null,null,null,null,null,null,null,null,null,null,null,null,null,null,null,null,null,null,"Sect B","Frise","cdd",{"$f":"IF(COUNTIF(F16:AA16,\"r\")>0,\"R\",\"\")","v":"R"},{"$f":"IF(COUNTIF(F16:AA16,\"v\")>0,\"V\",\"\")","v":"V"},{"$f":"IF(COUNTIF(F16:AA16,\"j\")>0,\"J\",\"\")","v":"J"}]
[null,null,null,null,null,"r",null,null,null,"j",null,null,null,null,null,null,"r",null,null,null,null,null,"v",null,null,null,null,null,null,null,null,"Sect B","Frise","cdd",{"$f":"IF(COUNTIF(F16:AA16,\"r\")>0,\"R\",\"\")","v":"R"},{"$f":"IF(COUNTIF(F16:AA16,\"v\")>0,\"V\",\"\")","v":"V"},{"$f":"IF(COUNTIF(A16:AA16,\"j\")>0,\"J\",\"\")","v":"J"}]
[null,null,null,null,"AGENT 2",null,null,null,null,null,null,null,null,null,null,null,null,null,null,null,null,null,null,null,null,null,null,null,null,null,null,"Sect A","Frise","cdd",{"$f":"IF(COUNTIF(F18:AA18,\"r\")>0,\"R\",\"\")","v":""},{"$f":"IF(COUNTIF(F18:AA18,\"v\")>0,\"V\",\"\")","v":""},{"$f":"IF(COUNTIF(F18:AA18,\"j\")>0,\"J\",\"\")","v":"J"}]
[null,null,null,null,null,null,null,null,null,null,null,"j",null,null,null,null,null,null,null,null,null,null,null,null,null,null,null,null,null,null,null,"Sect A","Frise","cdd",{"$f":"IF(COUNTIF(F18:AA18,\"r\")>0,\"R\",\"\")","v":""},{"$f":"IF(COUNTIF(F18:AA18,\"v\")>0,\"V\",\"\")","v":""},{"$f":"IF(COUNTIF(A18:AA18,\"j\")>0,\"J\",\"\")","v":"J"}]
[null,null,null,null,"AGENT 3",null,null,null,null,"j",null,null,null,null,null,null,null,null,null,null,null,null,null,null,null,null,null,null,null,null,null,"Sect A","Frise","cdi",{"$f":"IF(COUNTIF(F20:AA20,\"r\")>0,\"R\",\"\")","v":""},{"$f":"IF(COUNTIF(F20:AA20,\"v\")>0,\"V\",\"\")","v":"V"},{"$f":"IF(COUNTIF(F20:AA20,\"j\")>0,\"J\",\"\")","v":""}]
[null,null,null,null,null,null,null,null,null,null,null,null,null,null,null,null,null,null,null,null,null,null,null,null,null,"v",null,null,null,null,null,"Sect A","Frise","cdi",{"$f":"IF(COUNTIF(F20:AA20,\"r\")>0,\"R\",\"\")","v":""},{"$f":"IF(COUNTIF(F20:AA20,\"v\")>0,\"V\",\"\")","v":"V"},{"$f":"IF(COUNTIF(A20:AA20,\"j\")>0,\"J\",\"\")","v":""}]
[null,null,null,null,"AGENT 4",null,null,null,null,null,null,null,null,null,null,null,null,null,null,null,null,null,null,null,null,null,null,null,null,null,null,"Sect A","Frise","cdd",{"$f":"IF(COUNTIF(F22:AA22,\"r\")>0,\"R\",\"\")","v":"R"},{"$f":"IF(COUNTIF(F22:AA22,\"v\")>0,\"V\",\"\")","v":"V"},{"$f":"IF(COUNTIF(F22:AA22,\"j\")>0,\"J\",\"\")","v":"J"}]
[null,null,null,null,null,null,null,null,null,"v",null,null,null,null,null,null,"j",null,null,null,null,null,null,null,"r",null,null,null,null,null,null,"Sect A","Frise","cdd",{"$f":"IF(COUNTIF(F22:AA22,\"r\")>0,\"R\",\"\")","v":"R"},{"$f":"IF(COUNTIF(F22:AA22,\"v\")>0,\"V\",\"\")","v":"V"},{"$f":"IF(COUNTIF(A22:AA22,\"j\")>0,\"J\",\"\")","v":"J"}]
[null,null,null,null,"AGENT 5",null,null,null,null,null,null,null,null,null,null,null,null,null,null,null,null,null,null,null,null,null,null,null,null,null,null,"Sect B","Stas","cdd",{"$f":"IF(COUNTIF(F24:AA24,\"r\")>0,\"R\",\"\")","v":""},{"$f":"IF(COUNTIF(F24:AA24,\"v\")>0,\"V\",\"\")","v":"V"},{"$f":"IF(COUNTIF(F24:AA24,\"j\")>0,\"J\",\"\")","v":"J"}]
[null,null,null,null,null,null,null,null,null,null,null,"v",null,null,null,null,null,null,"j",null,null,null,null,null,null,null,null,null,null,null,null,"Sect B","Stas","cdd",{"$f":"IF(COUNTIF(F24:AA24,\"r\")>0,\"R\",\"\")","v":""},{"$f":"IF(COUNTIF(F24:AA24,\"v\")>0,\"V\",\"\")","v":"V"},{"$f":"IF(COUNTIF(A24:AA24,\"j\")>0,\"J\",\"\")","v":"J"}]
[null,null,null,null,"AGENT 6",null,null,null,null,null,null,null,null,null,null,null,null,null,null,null,null,null,null,null,null,null,null,null,null,null,null,"Sect B","Frise","cdd",{"$f":"IF(COUNTIF(F26:AA26,\"r\")>0,\"R\",\"\")","v":""},{"$f":"IF(COUNTIF(F26:AA26,\"v\")>0,\"V\",\"\")","v":""},{"$f":"IF(COUNTIF(F26:AA26,\"j\")>0,\"J\",\"\")","v":""}]
[null,null,null,null,null,null,null,null,null,null,null,null,null,null,null,null,null,null,null,null,null,null,null,null,null,null,null,null,null,null,null,"Sect B","Frise","cdd",{"$f":"IF(COUNTIF(F26:AA26,\"r\")>0,\"R\",\"\")","v":""},{"$f":"IF(COUNTIF(F26:AA26,\"v\")>0,\"V\",\"\")","v":""},{"$f":"IF(COUNTIF(A26:AA26,\"j\")>0,\"J\",\"\")","v":""}]
[null,null,null,null,"AGENT 7",null,null,null,null,null,null,null,null,null,null,null,null,null,null,null,null,null,null,null,null,null,null,null,null,null,null,"Sect C","Frise","cdd",{"$f":"IF(COUNTIF(F28:AA28,\"r\")>0,\"R\",\"\")","v":""},{"$f":"IF(COUNTIF(F28:AA28,\"v\")>0,\"V\",\"\")","v":"V"},{"$f":"IF(COUNTIF(F28:AA28,\"j\")>0,\"J\",\"\")","v":""}]
[null,null,null,null,null,null,null,null,"v",null,null,null,null,null,null,null,null,null,null,null,null,null,null,null,null,null,null,null,null,null,null,"Sect C","Frise","cdd",{"$f":"IF(COUNTIF(F28:AA28,\"r\")>0,\"R\",\"\")","v":""},{"$f":"IF(COUNTIF(F28:AA28,\"v\")>0,\"V\",\"\")","v":"V"},{"$f":"IF(COUNTIF(A28:AA28,\"j\")>0,\"J\",\"\")","v":""}]
[null,null,null,null,"AGENT 8",null,null,null,null,null,null,null,null,null,null,null,null,null,null,null,null,null,null,null,null,null,null,null,null,null,null,"Sect A","Stas","cdi",{"$f":"IF(COUNTIF(F30:AA30,\"r\")>0,\"R\",\"\")","v":""},{"$f":"IF(COUNTIF(F30:AA30,\"v\")>0,\"V\",\"\")","v":""},{"$f":"IF(COUNTIF(F30:AA30,\"j\")>0,\"J\",\"\")","v":"J"}]
[null,null,null,null,null,null,null,null,null,"j",null,null,null,null,null,null,null,null,null,null,null,null,null,null,null,null,null,null,null,null,null,"Sect A","Stas","cdi",{"$f":"IF(COUNTIF(F30:AA30,\"r\")>0,\"R\",\"\")","v":""},{"$f":"IF(COUNTIF(F30:AA30,\"v\")>0,\"V\",\"\")","v":""},{"$f":"IF(COUNTIF(A30:AA30,\"j\")>0,\"J\",\"\")","v":"J"}]
[null,null,null,null,"AGENT 9",null,null,null,null,null,null,null,null,null,null,null,null,null,null,null,null,null,null,null,null,null,null,null,null,null,null,"Sect C","Frise","cdi",{"$f":"IF(COUNTIF(F32:AA32,\"r\")>0,\"R\",\"\")","v":""},{"$f":"IF(COUNTIF(F32:AA32,\"v\")>0,\"V\",\"\")","v":"V"},{"$f":"IF(COUNTIF(F32:AA32,\"j\")>0,\"J\",\"\")","v":"J"}]
[null,null,null,null,null,null,null,null,null,null,null,null,null,null,null,null,null,null,null,null,null,null,null,"v",null,null,"j",null,null,null,null,"Sect C","Frise","cdi",{"$f":"IF(COUNTIF(F32:AA32,\"r\")>0,\"R\",\"\")","v":""},{"$f":"IF(COUNTIF(F32:AA32,\"v\")>0,\"V\",\"\")","v":"V"},{"$f":"IF(COUNTIF(A32:AA32,\"j\")>0,\"J\",\"\")","v":"J"}]
[null,null,null,null,"AGENT 10",null,null,null,null,null,null,null,null,null,null,null,null,null,null,null,null,null,null,null,null,null,null,null,null,null,null,"Sect A","Frise","cdi",{"$f":"IF(COUNTIF(F34:AA34,\"r\")>0,\"R\",\"\")","v":""},{"$f":"IF(COUNTIF(F34:AA34,\"v\")>0,\"V\",\"\")","v":""},{"$f":"IF(COUNTIF(F34:AA34,\"j\")>0,\"J\",\"\")","v":""}]
[null,null,null,null,null,null,null,null,null,null,null,null,null,null,null,null,null,null,null,null,null,null,null,null,null,null,null,null,null,null,null,"Sect A","Frise","cdi",{"$f":"IF(COUNTIF(F34:AA34,\"r\")>0,\"R\",\"\")","v":""},{"$f":"IF(COUNTIF(F34:AA34,\"v\")>0,\"V\",\"\")","v":""},{"$f":"IF(COUNTIF(A34:AA34,\"j\")>0,\"J\",\"\")","v":""}]
[null,null,null,null,"AGENT 11",null,null,null,null,null,null,null,null,null,null,null,null,null,null,null,null,null,null,null,null,null,null,null,null,null,null,"Sect A","Frise","cdi",{"$f":"IF(COUNTIF(F36:AA36,\"r\")>0,\"R\",\"\")","v":""},{"$f":"IF(COUNTIF(F36:AA36,\"v\")>0,\"V\",\"\")","v":""},{"$f":"IF(COUNTIF(F36:AA36,\"j\")>0,\"J\",\"\")","v":""}]
[null,null,null,null,null,null,null,null,null,null,null,null,null,null,null,null,null,null,null,null,null,null,null,null,null,null,null,null,null,null,null,"Sect A","Frise","cdi",{"$f":"IF(COUNTIF(F36:AA36,\"r\")>0,\"R\",\"\")","v":""},{"$f":"IF(COUNTIF(F36:AA36,\"v\")>0,\"V\",\"\")","v":""},{"$f":"IF(COUNTIF(A36:AA36,\"j\")>0,\"J\",\"\")","v":""}]
[null,null,null,null,"AGENT 12",null,null,"r",null,null,null,null,null,null,null,null,null,"v",null,null,null,null,null,null,null,null,null,null,null,null,null,"Sect A","Frise","cdi",{"$f":"IF(COUNTIF(F38:AA38,\"r\")>0,\"R\",\"\")","v":""},{"$f":"IF(COUNTIF(F38:AA38,\"v\")>0,\"V\",\"\")","v":""},{"$f":"IF(COUNTIF(F38:AA38,\"j\")>0,\"J\",\"\")","v":""}]
[null,null,null,null,null,null,null,null,null,null,null,null,null,null,null,null,null,null,null,null,null,null,null,null,null,null,null,null,null,null,null,"Sect A","Frise","cdi",{"$f":"IF(COUNTIF(F38:AA38,\"r\")>0,\"R\",\"\")","v":""},{"$f":"IF(COUNTIF(F38:AA38,\"v\")>0,\"V\",\"\")","v":""},{"$f":"IF(COUNTIF(A38:AA38,\"j\")>0,\"J\",\"\")","v":""}]
[null,null,null,null,"AGENT 13",null,null,null,null,null,null,null,null,null,null,null,null,null,null,null,null,null,null,null,null,null,null,null,null,null,null,"Sect A","Stas","cdd",{"$f":"IF(COUNTIF(F40:AA40,\"r\")>0,\"R\",\"\")","v":""},{"$f":"IF(COUNTIF(F40:AA40,\"v\")>0,\"V\",\"\")","v":""},{"$f":"IF(COUNTIF(F40:AA40,\"j\")>0,\"J\",\"\")","v":"J"}]
[null,null,null,null,null,null,null,null,"j",null,null,null,null,null,null,null,"j",null,null,null,null,null,null,null,null,null,null,null,null,null,null,"Sect A","Stas","cdd",{"$f":"IF(COUNTIF(F40:AA40,\"r\")>0,\"R\",\"\")","v":""},{"$f":"IF(COUNTIF(F40:AA40,\"v\")>0,\"V\",\"\")","v":""},{"$f":"IF(COUNTIF(A40:AA40,\"j\")>0,\"J\",\"\")","v":"J"}]
[null,null,null,null,"AGENT 14",null,null,null,null,null,null,null,null,null,null,null,null,null,null,null,null,null,null,null,null,null,null,null,null,null,null,"Sect A","Frise","cdi",{"$f":"IF(COUNTIF(F42:AA42,\"r\")>0,\"R\",\"\")","v":"R"},{"$f":"IF(COUNTIF(F42:AA42,\"v\")>0,\"V\",\"\")","v":""},{"$f":"IF(COUNTIF(F42:AA42,\"j\")>0,\"J\",\"\")","v":""}]
[null,null,null,null,null,null,null,null,null,null,null,null,null,null,null,null,null,null,null,null,null,null,null,null,"r",null,null,null,null,null,null,"Sect A","Frise","cdi",{"$f":"IF(COUNTIF(F42:AA42,\"r\")>0,\"R\",\"\")","v":"R"},{"$f":"IF(COUNTIF(F42:AA42,\"v\")>0,\"V\",\"\")","v":""},{"$f":"IF(COUNTIF(A42:AA42,\"j\")>0,\"J\",\"\")","v":""}]
[null,null,null,null,"AGENT 15",null,null,null,null,null,null,null,null,null,null,null,null,null,null,null,null,null,null,null,null,null,null,null,null,null,null,"Sect C","Frise","cdd",{"$f":"IF(COUNTIF(F44:AA44,\"r\")>0,\"R\",\"\")","v":""},{"$f":"IF(COUNTIF(F44:AA44,\"v\")>0,\"V\",\"\")","v":""},{"$f":"IF(COUNTIF(F44:AA44,\"j\")>0,\"J\",\"\")","v":""}]
[null,null,null,null,null,null,null,null,null,null,null,null,null,null,null,null,null,null,null,null,null,null,null,null,null,null,null,null,null,null,null,"Sect C","Frise","cdd",{"$f":"IF(COUNTIF(F44:AA44,\"r\")>0,\"R\",\"\")","v":""},{"$f":"IF(COUNTIF(F44:AA44,\"v\")>0,\"V\",\"\")","v":""},{"$f":"IF(COUNTIF(A44:AA44,\"j\")>0,\"J\",\"\")","v":""}]
[null,null,null,null,"AGENT 16",null,null,null,null,null,null,null,null,null,null,null,null,null,null,null,null,null,null,null,null,null,null,null,null,null,null,"Sect A","Frise","cdd",{"$f":"IF(COUNTIF(F46:AA46,\"r\")>0,\"R\",\"\")","v":""},{"$f":"IF(COUNTIF(F46:AA46,\"v\")>0,\"V\",\"\")","v":""},{"$f":"IF(COUNTIF(F46:AA46,\"j\")>0,\"J\",\"\")","v":""}]
[null,null,null,null,null,null,null,null,null,null,null,null,null,null,null,null,null,null,null,null,null,null,null,null,null,null,null,null,null,null,null,"Sect A","Frise","cdd",{"$f":"IF(COUNTIF(F46:AA46,\"r\")>0,\"R\",\"\")","v":""},{"$f":"IF(COUNTIF(F46:AA46,\"v\")>0,\"V\",\"\")","v":""},{"$f":"IF(COUNTIF(A46:AA46,\"j\")>0,\"J\",\"\")","v":""}]
[null,null,null,null,"AGENT 17",null,null,null,null,null,null,null,null,null,null,null,"j",null,null,null,null,null,null,null,null,null,null,null,null,null,null,"Sect A","Frise","cdi",{"$f":"IF(COUNTIF(F48:AA48,\"r\")>0,\"R\",\"\")","v":""},{"$f":"IF(COUNTIF(F48:AA48,\"v\")>0,\"V\",\"\")","v":""},{"$f":"IF(COUNTIF(F48:AA48,\"j\")>0,\"J\",\"\")","v":""}]
[null,null,null,null,null,null,null,null,null,null,null,null,null,null,null,null,null,null,null,null,null,null,null,null,null,null,null,null,null,null,null,"Sect A","Frise","cdi",{"$f":"IF(COUNTIF(F48:AA48,\"r\")>0,\"R\",\"\")","v":""},{"$f":"IF(COUNTIF(F48:AA48,\"v\")>0,\"V\",\"\")","v":""},{"$f":"IF(COUNTIF(A48:AA48,\"j\")>0,\"J\",\"\")","v":""}]
[null,null,null,null,"AGENT 18",null,null,null,null,"j",null,null,null,null,null,null,"v",null,"r",null,null,null,null,null,null,null,"j",null,null,null,null,"Sect A","Frise","cdd",{"$f":"IF(COUNTIF(F50:AA50,\"r\")>0,\"R\",\"\")","v":""},{"$f":"IF(COUNTIF(F50:AA50,\"v\")>0,\"V\",\"\")","v":""},{"$f":"IF(COUNTIF(F50:AA50,\"j\")>0,\"J\",\"\")","v":""}]
[null,null,null,null,null,null,null,null,null,null,null,null,null,null,null,null,null,null,null,null,null,null,null,null,null,null,null,null,null,null,null,"Sect A","Frise","cdd",{"$f":"IF(COUNTIF(F50:AA50,\"r\")>0,\"R\",\"\")","v":""},{"$f":"IF(COUNTIF(F50:AA50,\"v\")>0,\"V\",\"\")","v":""},{"$f":"IF(COUNTIF(A50:AA50,\"j\")>0,\"J\",\"\")","v":""}]
[null,null,null,null,"AGENT 19",null,null,null,null,null,null,null,null,null,null,null,null,null,null,null,null,null,null,null,null,null,null,null,null,null,null,"Sect A","Frise","cdd",{"$f":"IF(COUNTIF(F52:AA52,\"r\")>0,\"R\",\"\")","v":""},{"$f":"IF(COUNTIF(F52:AA52,\"v\")>0,\"V\",\"\")","v":""},{"$f":"IF(COUNTIF(F52:AA52,\"j\")>0,\"J\",\"\")","v":""}]
[null,null,null,null,null,null,null,null,null,null,null,null,null,null,null,null,null,null,null,null,null,null,null,null,null,null,null,null,null,null,null,"Sect A","Frise","cdd",{"$f":"IF(COUNTIF(F52:AA52,\"r\")>0,\"R\",\"\")","v":""},{"$f":"IF(COUNTIF(F52:AA52,\"v\")>0,\"V\",\"\")","v":""},{"$f":"IF(COUNTIF(A52:AA52,\"j\")>0,\"J\",\"\")","v":""}]
[null,null,null,null,"AGENT 20",null,null,null,null,null,null,null,null,null,null,null,null,null,null,null,null,null,null,null,null,null,null,null,null,null,null,"Sect A","Stas","cdd",{"$f":"IF(COUNTIF(F54:AA54,\"r\")>0,\"R\",\"\")","v":"R"},{"$f":"IF(COUNTIF(F54:AA54,\"v\")>0,\"V\",\"\")","v":"V"},{"$f":"IF(COUNTIF(F54:AA54,\"j\")>0,\"J\",\"\")","v":""}]
[null,null,null,null,null,null,null,null,null,null,null,"v",null,null,null,null,null,null,null,null,null,null,null,null,"r",null,"v",null,null,null,null,"Sect A","Stas","cdd",{"$f":"IF(COUNTIF(F54:AA54,\"r\")>0,\"R\",\"\")","v":"R"},{"$f":"IF(COUNTIF(F54:AA54,\"v\")>0,\"V\",\"\")","v":"V"},{"$f":"IF(COUNTIF(A54:AA54,\"j\")>0,\"J\",\"\")","v":""}]
[null,null,null,null,"AGENT 21",null,null,null,null,null,null,null,null,null,null,null,null,null,"r",null,null,null,null,null,null,null,null,null,null,null,null,"Sect A","Frise","cdd",{"$f":"IF(COUNTIF(F56:AA56,\"r\")>0,\"R\",\"\")","v":""},{"$f":"IF(COUNTIF(F56:AA56,\"v\")>0,\"V\",\"\")","v":""},{"$f":"IF(COUNTIF(F56:AA56,\"j\")>0,\"J\",\"\")","v":""}]
[null,null,null,null,null,null,null,null,null,null,null,null,null,null,null,null,null,null,null,null,null,null,null,null,null,null,null,null,null,null,null,"Sect A","Frise","cdd",{"$f":"IF(COUNTIF(F56:AA56,\"r\")>0,\"R\",\"\")","v":""},{"$f":"IF(COUNTIF(F56:AA56,\"v\")>0,\"V\",\"\")","v":""},{"$f":"IF(COUNTIF(A56:AA56,\"j\")>0,\"J\",\"\")","v":""}]
[null,null,null,null,"AGENT 22",null,null,null,null,null,null,null,null,null,null,null,null,null,null,null,null,null,null,null,null,null,null,null,null,null,null,"Sect B","Frise","cdd",{"$f":"IF(COUNTIF(F58:AA58,\"r\")>0,\"R\",\"\")","v":""},{"$f":"IF(COUNTIF(F58:AA58,\"v\")>0,\"V\",\"\")","v":""},{"$f":"IF(COUNTIF(F58:AA58,\"j\")>0,\"J\",\"\")","v":""}]
[null,null,null,null,null,null,null,null,null,null,null,null,null,null,null,null,null,null,null,null,null,null,null,null,null,null,null,null,null,null,null,"Sect B","Frise","cdd",{"$f":"IF(COUNTIF(F58:AA58,\"r\")>0,\"R\",\"\")","v":""},{"$f":"IF(COUNTIF(F58:AA58,\"v\")>0,\"V\",\"\")","v":""},{"$f":"IF(COUNTIF(A58:AA58,\"j\")>0,\"J\",\"\")","v":""}]
[null,null,null,null,"AGENT 23",null,null,null,null,null,null,null,null,null,null,null,null,null,null,null,null,null,null,null,null,null,null,null,null,null,null,"Sect A","Frise","cdd",{"$f":"IF(COUNTIF(F60:AA60,\"r\")>0,\"R\",\"\")","v":""},{"$f":"IF(COUNTIF(F60:AA60,\"v\")>0,\"V\",\"\")","v":"V"},{"$f":"IF(COUNTIF(F60:AA60,\"j\")>0,\"J\",\"\")","v":""}]
[null,null,null,null,null,null,null,null,null,null,null,"v",null,null,null,null,null,null,null,null,null,null,null,null,null,null,null,null,null,null,null,"Sect A","Frise","cdd",{"$f":"IF(COUNTIF(F60:AA60,\"r\")>0,\"R\",\"\")","v":""},{"$f":"IF(COUNTIF(F60:AA60,\"v\")>0,\"V\",\"\")","v":"V"},{"$f":"IF(COUNTIF(A60:AA60,\"j\")>0,\"J\",\"\")","v":""}]
[null,null,null,null,"AGENT 24",null,null,null,null,null,null,null,null,null,null,null,null,null,null,null,null,null,null,null,"v",null,null,null,null,null,null,"Sect A","Stas","cdd",{"$f":"IF(COUNTIF(F62:AA62,\"r\")>0,\"R\",\"\")","v":""},{"$f":"IF(COUNTIF(F62:AA62,\"v\")>0,\"V\",\"\")","v":""},{"$f":"IF(COUNTIF(F62:AA62,\"j\")>0,\"J\",\"\")","v":""}]
[null,null,null,null,null,null,null,null,null,null,null,null,null,null,null,null,null,null,null,null,null,null,null,null,null,null,null,null,null,null,null,"Sect A","Stas","cdd",{"$f":"IF(COUNTIF(F62:AA62,\"r\")>0,\"R\",\"\")","v":""},{"$f":"IF(COUNTIF(F62:AA62,\"v\")>0,\"V\",\"\")","v":""},{"$f":"IF(COUNTIF(A62:AA62,\"j\")>0,\"J\",\"\")","v":""}]
[null,null,null,null,"AGENT 25",null,null,null,null,null,null,null,null,null,null,null,null,null,null,null,null,null,null,null,null,null,null,null,null,null,null,"Sect B","Frise","cdd",{"$f":"IF(COUNTIF(F64:AA64,\"r\")>0,\"R\",\"\")","v":""},{"$f":"IF(COUNTIF(F64:AA64,\"v\")>0,\"V\",\"\")","v":""},{"$f":"IF(COUNTIF(F64:AA64,\"j\")>0,\"J\",\"\")","v":""}]
[null,null,null,null,null,null,null,null,null,null,null,null,null,null,null,null,null,null,null,null,null,null,null,null,null,null,null,null,null,null,null,"Sect B","Frise","cdd",{"$f":"IF(COUNTIF(F64:AA64,\"r\")>0,\"R\",\"\")","v":""},{"$f":"IF(COUNTIF(F64:AA64,\"v\")>0,\"V\",\"\")","v":""},{"$f":"IF(COUNTIF(A64:AA64,\"j\")>0,\"J\",\"\")","v":""}]
[null,null,null,null,"AGENT 26",null,null,null,null,null,null,null,null,null,null,null,null,null,null,null,null,null,null,null,null,null,null,null,null,null,null,"Sect A","Frise","cdi",{"$f":"IF(COUNTIF(F66:AA66,\"r\")>0,\"R\",\"\")","v":""},{"$f":"IF(COUNTIF(F66:AA66,\"v\")>0,\"V\",\"\")","v":""},{"$f":"IF(COUNTIF(F66:AA66,\"j\")>0,\"J\",\"\")","v":""}]
[null,null,null,null,null,null,null,null,null,null,null,null,null,null,null,null,null,null,null,null,null,null,null,null,null,null,null,null,null,null,null,"Sect A","Frise","cdi",{"$f":"IF(COUNTIF(F66:AA66,\"r\")>0,\"R\",\"\")","v":""},{"$f":"IF(COUNTIF(F66:AA66,\"v\")>0,\"V\",\"\")","v":""},{"$f":"IF(COUNTIF(A66:AA66,\"j\")>0,\"J\",\"\")","v":""}]
[null,null,null,null,"AGENT 27",null,null,null,null,null,null,null,null,null,null,null,null,"v",null,null,null,null,null,null,null,null,null,null,null,null,null,"Sect B","Stas","cdd",{"$f":"IF(COUNTIF(F68:AA68,\"r\")>0,\"R\",\"\")","v":""},{"$f":"IF(COUNTIF(F68:AA68,\"v\")>0,\"V\",\"\")","v":""},{"$f":"IF(COUNTIF(F68:AA68,\"j\")>0,\"J\",\"\")","v":""}]
[null,null,null,null,null,null,null,null,null,null,null,null,null,null,null,null,null,null,null,null,null,null,null,null,null,null,null,null,null,null,null,"Sect B","Stas","cdd",{"$f":"IF(COUNTIF(F68:AA68,\"r\")>0,\"R\",\"\")","v":""},{"$f":"IF(COUNTIF(F68:AA68,\"v\")>0,\"V\",\"\")","v":""},{"$f":"IF(COUNTIF(A68:AA68,\"j\")>0,\"J\",\"\")","v":""}]
[null,null,null,null,"AGENT 28",null,null,null,null,null,null,null,null,null,null,null,null,null,null,null,null,null,null,null,null,null,null,null,null,null,null,"Sect A","Frise","cdi",{"$f":"IF(COUNTIF(F70:AA70,\"r\")>0,\"R\",\"\")","v":""},{"$f":"IF(COUNTIF(F70:AA70,\"v\")>0,\"V\",\"\")","v":""},{"$f":"IF(COUNTIF(F70:AA70,\"j\")>0,\"J\",\"\")","v":""}]
[null,null,null,null,null,null,null,null,null,null,null,null,null,null,null,null,null,null,null,null,null,null,null,null,null,null,null,null,null,null,null,"Sect A","Frise","cdi",{"$f":"IF(COUNTIF(F70:AA70,\"r\")>0,\"R\",\"\")","v":""},{"$f":"IF(COUNTIF(F70:AA70,\"v\")>0,\"V\",\"\")","v":""},{"$f":"IF(COUNTIF(A70:AA70,\"j\")>0,\"J\",\"\")","v":""}]
[null,null,null,null,"AGENT 29",null,null,null,null,null,null,null,null,null,null,null,null,null,null,null,null,null,null,null,null,null,null,null,null,null,null,"Sect A","Frise","cdd",{"$f":"IF(COUNTIF(F72:AA72,\"r\")>0,\"R\",\"\")","v":""},{"$f":"IF(COUNTIF(F72:AA72,\"v\")>0,\"V\",\"\")","v":""},{"$f":"IF(COUNTIF(F72:AA72,\"j\")>0,\"J\",\"\")","v":""}]
[null,null,null,null,null,null,null,null,null,null,null,null,null,null,null,null,null,null,null,null,null,null,null,null,null,null,null,null,null,null,null,"Sect A","Frise","cdd",{"$f":"IF(COUNTIF(F72:AA72,\"r\")>0,\"R\",\"\")","v":""},{"$f":"IF(COUNTIF(F72:AA72,\"v\")>0,\"V\",\"\")","v":""},{"$f":"IF(COUNTIF(A72:AA72,\"j\")>0,\"J\",\"\")","v":""}]
[null,null,null,null,"AGENT 30",null,null,null,"r",null,null,null,null,null,null,null,null,null,null,null,null,null,null,null,null,null,null,null,null,null,null,"Sect A","Frise","cdi",{"$f":"IF(COUNTIF(F74:AA74,\"r\")>0,\"R\",\"\")","v":""},{"$f":"IF(COUNTIF(F74:AA74,\"v\")>0,\"V\",\"\")","v":""},{"$f":"IF(COUNTIF(F74:AA74,\"j\")>0,\"J\",\"\")","v":""}]
[null,null,null,null,null,null,null,null,null,null,null,null,null,null,null,null,null,null,null,null,null,null,null,null,null,null,null,null,null,null,null,"Sect A","Frise","cdi",{"$f":"IF(COUNTIF(F74:AA74,\"r\")>0,\"R\",\"\")","v":""},{"$f":"IF(COUNTIF(F74:AA74,\"v\")>0,\"V\",\"\")","v":""},{"$f":"IF(COUNTIF(A74:AA74,\"j\")>0,\"J\",\"\")","v":""}]
[null,null,null,null,"AGENT 31",null,null,null,null,null,null,null,null,null,null,null,null,null,null,null,null,null,null,null,null,null,null,null,null,null,null,"Sect A","Frise","cdd",{"$f":"IF(COUNTIF(F76:AA76,\"r\")>0,\"R\",\"\")","v":""},{"$f":"IF(COUNTIF(F76:AA76,\"v\")>0,\"V\",\"\")","v":""},{"$f":"IF(COUNTIF(F76:AA76,\"j\")>0,\"J\",\"\")","v":""}]
[null,null,null,null,null,null,null,null,null,null,null,null,null,null,null,null,null,null,null,null,null,null,null,null,null,null,null,null,null,null,null,"Sect A","Frise","cdd",{"$f":"IF(COUNTIF(F76:AA76,\"r\")>0,\"R\",\"\")","v":""},{"$f":"IF(COUNTIF(F76:AA76,\"v\")>0,\"V\",\"\")","v":""},{"$f":"IF(COUNTIF(A76:AA76,\"j\")>0,\"J\",\"\")","v":""}]
[null,null,null,null,"AGENT 32",null,null,null,null,null,null,null,null,null,null,null,null,null,null,null,null,null,null,null,null,"r",null,null,null,null,null,"Sect C","Frise","cdi",{"$f":"IF(COUNTIF(F78:AA78,\"r\")>0,\"R\",\"\")","v":""},{"$f":"IF(COUNTIF(F78:AA78,\"v\")>0,\"V\",\"\")","v":""},{"$f":"IF(COUNTIF(F78:AA78,\"j\")>0,\"J\",\"\")","v":""}]
[null,null,null,null,null,null,null,null,null,null,null,null,null,null,null,null,null,null,null,null,null,null,null,null,null,null,null,null,null,null,null,"Sect C","Frise","cdi",{"$f":"IF(COUNTIF(F78:AA78,\"r\")>0,\"R\",\"\")","v":""},{"$f":"IF(COUNTIF(F78:AA78,\"v\")>0,\"V\",\"\")","v":""},{"$f":"IF(COUNTIF(A78:AA78,\"j\")>0,\"J\",\"\")","v":""}]
[null,null,null,null,"AGENT 33",null,null,null,null,null,null,null,null,null,null,null,null,null,null,null,null,null,null,null,null,null,null,null,null,null,null,"Sect A","Frise","cdd",{"$f":"IF(COUNTIF(F80:AA80,\"r\")>0,\"R\",\"\")","v":""},{"$f":"IF(COUNTIF(F80:AA80,\"v\")>0,\"V\",\"\")","v":"V"},{"$f":"IF(COUNTIF(F80:AA80,\"j\")>0,\"J\",\"\")","v":""}]
[null,null,null,null,null,null,null,null,"v",null,null,null,null,null,null,null,null,null,null,null,null,null,null,null,"v",null,null,null,null,null,null,"Sect A","Frise","cdd",{"$f":"IF(COUNTIF(F80:AA80,\"r\")>0,\"R\",\"\")","v":""},{"$f":"IF(COUNTIF(F80:AA80,\"v\")>0,\"V\",\"\")","v":"V"},{"$f":"IF(COUNTIF(A80:AA80,\"j\")>0,\"J\",\"\")","v":""}]
[null,null,null,null,"AGENT 34",null,null,null,null,null,null,null,null,null,null,null,null,null,null,null,null,null,null,null,null,null,null,null,null,null,null,"Sect A","Frise","cdi",{"$f":"IF(COUNTIF(F82:AA82,\"r\")>0,\"R\",\"\")","v":""},{"$f":"IF(COUNTIF(F82:AA82,\"v\")>0,\"V\",\"\")","v":"V"},{"$f":"IF(COUNTIF(F82:AA82,\"j\")>0,\"J\",\"\")","v":""}]
[null,null,null,null,null,null,null,null,null,null,null,null,null,null,null,null,"v",null,null,null,null,null,null,null,null,null,null,null,null,null,null,"Sect A","Frise","cdi",{"$f":"IF(COUNTIF(F82:AA82,\"r\")>0,\"R\",\"\")","v":""},{"$f":"IF(COUNTIF(F82:AA82,\"v\")>0,\"V\",\"\")","v":"V"},{"$f":"IF(COUNTIF(A82:AA82,\"j\")>0,\"J\",\"\")","v":""}]

{"sheet":"données","index":1,"n_rows":7,"n_cols":161,"rows_kept":7,"cut":false,"hidden":false,"merged":[]}
[]
[]
["AFFECTATION","FONCTION","CONTRAT","ROUGE","VERT","JAUNE",null,"AFFECTATION","FONCTION","CONTRAT",null,"Couleurs"]
["Sect A",null,null,null,null,"J",null,"TOUT","TOUT","TOUT",null,"TOUT"]
["Sect A",null,null,null,null,"J",null,"Sect A","Frise","cdd",null,"R",null,null,null,null,null,null,null,null,null,null,null,null,null,null,null,null,null,null,null,null,null,null,null,null,null,null,null,null,null,null,null,null,null,null,null,null,null,null,null,null,null,null,null,null,null,null,null,null,null,null,null,null,null,null,null,null,null,null,null,null,null,null,null,null,null,null,null,null,null,null,null,null,null,null,null,null,null,null,null,null,null,null,null,null,null,null,null,null,null,null,null,null,null,null,null,null,null,null,null,null,null,null,null,null,null,null,null,null,null,null,null,null,null,null,null,null,null,null,null,null,null,null,null,null,null,null,null,null,null,null,null,null,null,null,null,null,null,null,null,null,null,null,null,null,null,null,null,null,"TOUT"]
[null,null,null,null,null,null,null,"Sect C","Stas","cdi",null,"V"]
[null,null,null,null,null,null,null,"Sect B",null,null,null,"J"]